fUSD/lending_fUSD_20240615
["ID","MTS","AMOUNT","RATE_DAILY","PERIOD"]
[329554659,1718433048282,-500.0,0.00021917,2]
[329554661,1718433048312,-500.0,0.00021917,2]
[329554670,1718433048466,-500.0,0.00021917,2]
[329554672,1718433048480,-393.29,0.00021917,2]
[329554673,1718433048509,-500.0,0.00021917,2]
[329554675,1718433048524,-500.0,0.00021917,2]
[329554677,1718433048536,-500.0,0.00021917,2]
[329554679,1718433048548,-500.0,0.00021917,2]
[329554681,1718433048576,-500.0,0.00021917,2]
[329554683,1718433048603,-151.0,0.00021917,2]
[329554686,1718433048636,-500.0,0.00021917,2]
[329554687,1718433048648,-500.0,0.00021917,2]
[329554689,1718433048660,-500.0,0.00021917,2]
[329554691,1718433048673,-153.957275,0.00021917,2]
[329554693,1718433048695,-500.0,0.00021917,2]
[329554694,1718433048718,-740.56,0.00021917,2]
[329554696,1718433048731,-500.0,0.00021917,2]
[329554698,1718433048744,-500.0,0.00021917,2]
[329554700,1718433048757,-500.0,0.00021917,2]
[329554702,1718433048772,-500.0,0.00021917,2]
[329554704,1718433048784,-500.0,0.00021917,2]
[329554706,1718433048804,-500.0,0.00021917,2]
[329554709,1718433048835,-500.0,0.00021917,2]
[329554711,1718433048854,-500.0,0.00021917,2]
[329554713,1718433048866,-860.54,0.00021917,2]
[329554715,1718433048878,-860.54,0.00021917,2]
[329554717,1718433048890,-860.54,0.00021917,2]
[329554718,1718433048906,-500.0,0.00021917,2]
[329554720,1718433048929,-500.0,0.00021917,2]
[329554722,1718433048943,-500.0,0.00021917,2]
[329554724,1718433048960,-563.49287203,0.00021917,2]
[329554726,1718433048975,-500.0,0.00021917,2]
[329554728,1718433048997,-500.0,0.00021917,2]
[329554731,1718433049020,-398.1020123,0.00021917,2]
[329554733,1718433049034,-500.0,0.00021917,2]
[329554734,1718433049048,-500.0,0.00021917,2]
[329554736,1718433049062,-500.0,0.00021917,2]
[329554738,1718433049081,-500.0,0.00021917,2]
[329554740,1718433049093,-500.0,0.00021917,2]
[329554742,1718433049105,-500.0,0.00021917,2]
[329554744,1718433049116,-500.0,0.00021917,2]
[329554746,1718433049135,-500.0,0.00021917,2]
[329554748,1718433049150,-500.0,0.00021917,2]
[329554751,1718433049162,-500.0,0.00021917,2]
[329554753,1718433049176,-500.0,0.00021917,2]
[329554755,1718433049188,-673.24,0.00021917,2]
[329554757,1718433049198,-546.06,0.00021917,2]
[329554759,1718433049209,-500.0,0.00021917,2]
[329554760,1718433049219,-500.0,0.00021917,2]
[329554761,1718433049230,-500.0,0.00021917,2]
[329554762,1718433049245,-500.0,0.00021917,2]
[329554763,1718433049257,-500.0,0.00021917,2]
[329554764,1718433049278,-500.0,0.00021917,2]
[329554765,1718433049310,-500.0,0.00021917,2]
[329554768,1718433049326,-500.0,0.00021917,2]
[329554770,1718433049337,-500.0,0.00021917,2]
[329554772,1718433049349,-151.0,0.00021917,2]
[329554774,1718433049364,-500.0,0.00021917,2]
[329554775,1718433049376,-500.0,0.00021917,2]
[329554777,1718433049387,-207.24032679,0.00021917,2]
[329554779,1718433049399,-750.93,0.00021917,2]
[329554782,1718433049415,-500.0,0.00021917,2]
[329554784,1718433049438,-500.0,0.00021917,2]
[329554786,1718433049449,-500.0,0.00021917,2]
[329554788,1718433049461,-500.0,0.00021917,2]
[329554790,1718433049476,-151.0,0.00021917,2]
[329554792,1718433049488,-500.0,0.00021917,2]
[329554794,1718433049505,-151.0,0.00021917,2]
[329554795,1718433049517,-524.71090326,0.00021917,2]
[329554797,1718433049544,-500.0,0.00021917,2]
[329554799,1718433049564,-500.0,0.00021917,2]
[329554801,1718433049577,-151.0,0.00021917,2]
[329554803,1718433049589,-500.0,0.00021917,2]
[329554805,1718433049616,-500.0,0.00021917,2]
[329554807,1718433049629,-533.71200664,0.00021917,2]
[329554809,1718433049645,-500.0,0.00021917,2]
[329554810,1718433049658,-500.0,0.00021917,2]
[329554812,1718433049672,-500.0,0.00021917,2]
[329554815,1718433049688,-500.0,0.00021917,2]
[329554817,1718433049701,-729.3,0.00021917,2]
[329554819,1718433049717,-158.001699,0.00021917,2]
[329554821,1718433049728,-500.0,0.00021917,2]
[329554823,1718433049740,-500.0,0.00021917,2]
[329554825,1718433049755,-500.0,0.00021917,2]
[329554827,1718433049767,-151.0,0.00021917,2]
[329554829,1718433049780,-500.0,0.00021917,2]
[329554831,1718433049795,-586.49,0.00021917,2]
[329554833,1718433049814,-500.0,0.00021917,2]
[329554835,1718433049826,-500.0,0.00021917,2]
[329554838,1718433049843,-500.0,0.00021917,2]
[329554840,1718433049856,-500.0,0.00021917,2]
[329554842,1718433049868,-500.0,0.00021917,2]
[329554844,1718433049885,-500.0,0.00021917,2]
[329554846,1718433049897,-252.49699,0.00021917,2]
[329554848,1718433049926,-868.88976,0.00021917,2]
[329554850,1718433049948,-500.0,0.00021917,2]
[329554852,1718433049971,-500.0,0.00021917,2]
[329554855,1718433050000,-500.0,0.00021917,2]
[329554857,1718433050017,-500.0,0.00021917,2]
[329554859,1718433050034,-252.49699,0.00021917,2]
[329554861,1718433050055,-500.0,0.00021917,2]
[329554863,1718433050092,-500.0,0.00021917,2]
[329554865,1718433050107,-184.8723893,0.00021917,2]
[329554891,1718433050512,-318.87533251,0.00021917,2]
[329554893,1718433050525,-199.08609979,0.00021917,2]
[329554895,1718433050544,-75.99511421,0.00021917,2]
[329554897,1718433050564,-727.11510189,0.00021917,2]
[329554898,1718433050645,-141.77465811,0.00021917,2]
[329554899,1718433050657,-500.0,0.00021917,2]
[329554900,1718433050677,-151.0,0.00021917,2]
[329554901,1718433050696,-16.95638454,0.00021917,2]
[329554902,1718433050716,-364.88753182,0.00021917,2]
[329554904,1718433050734,-118.15608364,0.00021917,2]
[329554906,1718433050758,-500.0,0.00021917,2]
[329554908,1718433050779,-500.0,0.00021917,2]
[329554909,1718433050802,-500.0,0.00021917,2]
[329554911,1718433050821,-500.0,0.00021917,2]
[329554913,1718433050838,-500.0,0.00021917,2]
[329554914,1718433050855,-705.61341022,0.00021917,2]
[329554916,1718433050883,-1329.52658978,0.00021917,2]
[329554918,1718433050895,-504.4838579,0.00021917,2]
[329554920,1718433050911,-500.0,0.00021917,2]
[329554921,1718433050922,-500.0,0.00021917,2]
[329554923,1718433050935,-500.0,0.00021917,2]
[329554924,1718433050949,-500.0,0.00021917,2]
[329554926,1718433050966,-500.0,0.00021917,2]
[329554929,1718433051012,-128.51323199,0.00021917,2]
[329554935,1718433051098,-22.48676801,0.00021917,2]
[329554937,1718433051128,-859.79,0.00021917,2]
[329554939,1718433051141,-500.0,0.00021917,2]
[329554941,1718433051153,-500.0,0.00021917,2]
[329554943,1718433051165,-243.46722595,0.00021917,2]
[329554945,1718433051183,-256.53277405,0.00021917,2]
[329554947,1718433051195,-147.46722605,0.00021917,2]
[329554949,1718433051210,-326.34,0.00021917,2]
[329554952,1718433051224,-26.19277395,0.00021917,2]
[329554954,1718433051235,-393.80722605,0.00021917,2]
[329554975,1718433051480,-2267.12277395,0.00021917,2]
[329554977,1718433051497,-505.82804324,0.00021917,2]
[329554979,1718433051517,-500.0,0.00021917,2]
[329554981,1718433051529,-844.12,0.00021917,2]
[329554983,1718433051541,-500.0,0.00021917,2]
[329554985,1718433051561,-151.0,0.00021917,2]
[329554987,1718433051578,-500.0,0.00021917,2]
[329554988,1718433051588,-500.0,0.00021917,2]
[329554989,1718433051599,-500.0,0.00021917,2]
[329554990,1718433051609,-500.0,0.00021917,2]
[329554991,1718433051625,-500.0,0.00021917,2]
[329554992,1718433051636,-500.0,0.00021917,2]
[329554993,1718433051649,-500.0,0.00021917,2]
[329554994,1718433051664,-500.0,0.00021917,2]
[329554995,1718433051675,-500.0,0.00021917,2]
[329554996,1718433051685,-500.0,0.00021917,2]
[329554997,1718433051696,-500.0,0.00021917,2]
[329554998,1718433051706,-712.85,0.00021917,2]
[329554999,1718433051718,-500.0,0.00021917,2]
[329555000,1718433051731,-500.0,0.00021917,2]
[329555001,1718433051748,-527.45,0.00021917,2]
[329555002,1718433051759,-500.0,0.00021917,2]
[329555003,1718433051782,-500.0,0.00021917,2]
[329555004,1718433051798,-500.0,0.00021917,2]
[329555005,1718433051809,-500.0,0.00021917,2]
[329555006,1718433051822,-568.4,0.00021917,2]
[329555007,1718433051856,-500.0,0.00021917,2]
[329555008,1718433051868,-500.0,0.00021917,2]
[329555009,1718433051882,-500.0,0.00021917,2]
[329555010,1718433051895,-500.0,0.00021917,2]
[329555011,1718433051915,-500.0,0.00021917,2]
[329555012,1718433051938,-500.0,0.00021917,2]
[329555013,1718433051963,-500.0,0.00021917,2]
[329555014,1718433051981,-500.0,0.00021917,2]
[329555015,1718433052015,-500.0,0.00021917,2]
[329555016,1718433052028,-500.0,0.00021917,2]
[329555017,1718433052045,-500.0,0.00021917,2]
[329555018,1718433052060,-500.0,0.00021917,2]
[329555019,1718433052075,-500.0,0.00021917,2]
[329555020,1718433052092,-500.0,0.00021917,2]
[329555021,1718433052111,-500.0,0.00021917,2]
[329555022,1718433052132,-500.0,0.00021917,2]
[329555023,1718433052152,-500.0,0.00021917,2]
[329555024,1718433052172,-500.0,0.00021917,2]
[329555025,1718433052240,-500.0,0.00021917,2]
[329555026,1718433052256,-500.0,0.00021917,2]
[329555027,1718433052268,-500.0,0.00021917,2]
[329555028,1718433052295,-312.04492172,0.00021917,2]
[329555029,1718433052320,-187.95507828,0.00021917,2]
[329555031,1718433052352,-500.0,0.00021917,2]
[329555032,1718433052374,-373.83514898,0.00021917,2]
[329555038,1718433052480,-126.16485102,0.00021917,2]
[329555041,1718433052536,-198.92749803,0.00021917,2]
[329555043,1718433052565,-301.07250197,0.00021917,2]
[329555044,1718433052615,-634.86680697,0.00021917,2]
[329555045,1718433052635,-472.64319303,0.00021917,2]
[329555046,1718433052657,-483.69508697,0.00021917,2]
[329555120,1718433053900,-16.30491303,0.00021917,2]
[329555122,1718433053915,-151.0,0.00021917,2]
[329555124,1718433053932,-500.0,0.00021917,2]
[329555126,1718433053945,-252.01508743,0.00021917,2]
[329555128,1718433053963,-247.98491257,0.00021917,2]
[329555130,1718433053982,-382.86508743,0.00021917,2]
[329555132,1718433054005,-117.13491257,0.00021917,2]
[329555134,1718433054021,-500.0,0.00021917,2]
[329555136,1718433054041,-500.0,0.00021917,2]
[329555138,1718433054083,-785.24,0.00021917,2]
[329555139,1718433054095,-500.0,0.00021917,2]
[329555141,1718433054136,-500.0,0.00021917,2]
[329555143,1718433054148,-152.16909064,0.00021917,2]
[329555157,1718433054437,-197.72878442,0.00021917,2]
[329555158,1718433054460,-1352.54,0.00021917,2]
[329555160,1718433054472,-542.53,0.00021917,2]
[329555162,1718433054507,-832.9,0.00021917,2]
[329555164,1718433054523,-500.0,0.00021917,2]
[329555167,1718433054561,-500.0,0.00021917,2]
[329555169,1718433054588,-418.044972,0.00021917,2]
[329555173,1718433054644,-500.0,0.00021917,2]
[329555175,1718433054656,-500.0,0.00021917,2]
[329555176,1718433054676,-500.0,0.00021917,2]
[329555178,1718433054689,-194.1678519,0.00021917,2]
[329555193,1718433055074,-739.1021481,0.00021917,2]
[329555195,1718433055100,-500.0,0.00021917,2]
[329555197,1718433055125,-500.0,0.00021917,2]
[329555198,1718433055137,-524.21,0.00021917,2]
[329555200,1718433055150,-500.0,0.00021917,2]
[329555202,1718433055161,-500.0,0.00021917,2]
[329555204,1718433055174,-500.0,0.00021917,2]
[329555206,1718433055187,-500.0,0.00021917,2]
[329555208,1718433055213,-1709.82,0.00021917,2]
[329555210,1718433055233,-500.0,0.00021917,2]
[329555212,1718433055273,-383.00701973,0.00021917,2]
[329555214,1718433055290,-682.19,0.00021917,2]
[329555216,1718433055312,-500.0,0.00021917,2]
[329555218,1718433055326,-500.0,0.00021917,2]
[329555220,1718433055345,-500.0,0.00021917,2]
[329555223,1718433055387,-500.0,0.00021917,2]
[329555224,1718433055398,-500.0,0.00021917,2]
[329555237,1718433055608,-500.0,0.00021917,2]
[329555239,1718433055624,-500.0,0.00021917,2]
[329555241,1718433055644,-500.0,0.00021917,2]
[329555243,1718433055672,-500.0,0.00021917,2]
[329555245,1718433055701,-1897.0,0.00021917,2]
[329555247,1718433055745,-500.0,0.00021917,2]
[329555249,1718433055768,-500.0,0.00021917,2]
[329555251,1718433055796,-500.0,0.00021917,2]
[329555253,1718433055817,-151.0,0.00021917,2]
[329555254,1718433055831,-793.06,0.00021917,2]
[329555257,1718433055855,-500.0,0.00021917,2]
[329555258,1718433055869,-500.0,0.00021917,2]
[329555260,1718433055881,-151.0,0.00021917,2]
[329555262,1718433055911,-151.0,0.00021917,2]
[329555264,1718433055940,-500.0,0.00021917,2]
[329555265,1718433055957,-500.0,0.00021917,2]
[329555267,1718433055971,-500.0,0.00021917,2]
[329555269,1718433055989,-631.21,0.00021917,2]
[329555271,1718433056008,-644.29,0.00021917,2]
[329555273,1718433056020,-628.33,0.00021917,2]
[329555275,1718433056040,-500.0,0.00021917,2]
[329555277,1718433056051,-574.99,0.00021917,2]
[329555279,1718433056066,-500.0,0.00021917,2]
[329555281,1718433056102,-588.46,0.00021917,2]
[329555283,1718433056115,-500.0,0.00021917,2]
[329555284,1718433056126,-500.0,0.00021917,2]
[329555286,1718433056138,-1288.1,0.00021917,2]
[329555288,1718433056157,-500.0,0.00021917,2]
[329555289,1718433056195,-500.0,0.00021917,2]
[329555291,1718433056245,-500.0,0.00021917,2]
[329555293,1718433056273,-151.0,0.00021917,2]
[329555295,1718433056290,-500.0,0.00021917,2]
[329555298,1718433056332,-500.0,0.00021917,2]
[329555301,1718433056396,-500.0,0.00021917,2]
[329555303,1718433056415,-151.0,0.00021917,2]
[329555306,1718433056458,-500.0,0.00021917,2]
[329555307,1718433056470,-500.0,0.00021917,2]
[329555309,1718433056494,-500.0,0.00021917,2]
[329555310,1718433056508,-500.0,0.00021917,2]
[329555311,1718433056525,-151.0,0.00021917,2]
[329555312,1718433056537,-1720.87,0.00021917,2]
[329555313,1718433056549,-500.0,0.00021917,2]
[329555314,1718433056563,-606.01297102,0.00021917,2]
[329555315,1718433056574,-416.93702603,0.00021917,2]
[329555322,1718433056804,-83.06297397,0.00021917,2]
[329555325,1718433056848,-259.36734699,0.00021917,2]
[329555327,1718433056883,-240.63265301,0.00021917,2]
[329555329,1718433056894,-154.62004644,0.00021917,2]
[329555330,1718433056908,-447.63995356,0.00021917,2]
[329555332,1718433056920,-500.0,0.00021917,2]
[329555334,1718433056931,-500.0,0.00021917,2]
[329555335,1718433056943,-500.0,0.00021917,2]
[329555337,1718433056956,-500.0,0.00021917,2]
[329555339,1718433056978,-500.0,0.00021917,2]
[329555340,1718433057001,-500.0,0.00021917,2]
[329555341,1718433057032,-789.35,0.00021917,2]
[329555342,1718433057064,-500.0,0.00021917,2]
[329555343,1718433057075,-343.15591514,0.00021917,2]
[329555344,1718433057702,-156.84408486,0.00021917,2]
[329555345,1718433057713,-677.44,0.00021917,2]
[329555346,1718433057724,-521.71591514,0.00021917,2]
[329555347,1718433057738,-206.63408486,0.00021917,2]
[329555348,1718433057751,-416.61591514,0.00021917,2]
[329555349,1718433057816,-330.02430778,0.00021817,2]
[329555350,1718433057831,-83.38408486,0.00021917,2]
[329555351,1718433057860,-500.0,0.00021917,2]
[329555352,1718433057884,-793.99,0.00021917,2]
[329555353,1718433057897,-500.0,0.00021917,2]
[329555354,1718433057914,-500.0,0.00021917,2]
[329555355,1718433057927,-500.0,0.00021917,2]
[329555356,1718433057942,-500.0,0.00021917,2]
[329555357,1718433057965,-1001.68,0.00021917,2]
[329555358,1718433057994,-3006.76,0.00021917,2]
[329555359,1718433058024,-151.0,0.00021917,2]
[329555360,1718433058042,-500.0,0.00021917,2]
[329555361,1718433058057,-500.0,0.00021917,2]
[329555362,1718433058079,-500.0,0.00021917,2]
[329555363,1718433058128,-549.96,0.00021917,2]
[329555364,1718433058140,-500.0,0.00021917,2]
[329555365,1718433058181,-500.0,0.00021917,2]
[329555366,1718433058217,-525.2,0.00021917,2]
[329555367,1718433058231,-500.0,0.00021917,2]
[329555368,1718433058242,-151.0,0.00021917,2]
[329555369,1718433058268,-500.0,0.00021917,2]
[329555370,1718433058330,-500.0,0.00021917,2]
[329555371,1718433058364,-3931.62,0.00021917,2]
[329555372,1718433058400,-1009.53,0.00021917,2]
[329555373,1718433058414,-1771.17,0.00021917,2]
[329555374,1718433058430,-250.87139566,0.00021917,2]
[329555375,1718433058455,-151.0,0.00021917,2]
[329555376,1718433058467,-500.0,0.00021917,2]
[329555377,1718433058478,-151.0,0.00021917,2]
[329555378,1718433058489,-151.0,0.00021917,2]
[329555379,1718433058500,-500.0,0.00021917,2]
[329555380,1718433058511,-529.86541159,0.00021917,2]
[329555381,1718433058540,-153.280509,0.00021917,2]
[329555382,1718433058572,-500.0,0.00021917,2]
[329555383,1718433058593,-1000.0,0.00021917,2]
[329555384,1718433058609,-500.0,0.00021917,2]
[329555385,1718433058624,-500.0,0.00021917,2]
[329555386,1718433058687,-151.0,0.00021917,2]
[329555387,1718433058717,-500.0,0.00021917,2]
[329555388,1718433058748,-500.0,0.00021917,2]
[329555389,1718433058761,-153.342797,0.00021917,2]
[329555390,1718433058812,-500.0,0.00021917,2]
[329555391,1718433058824,-500.0,0.00021917,2]
[329555392,1718433058860,-151.0,0.00021917,2]
[329555393,1718433058876,-500.0,0.00021917,2]
[329555394,1718433058913,-500.0,0.00021917,2]
[329555395,1718433058941,-623.15,0.00021917,2]
[329555396,1718433058951,-500.0,0.00021917,2]
[329555397,1718433058964,-151.0,0.00021917,2]
[329555398,1718433058989,-501.58570605,0.00021917,2]
[329555399,1718433059014,-500.0,0.00021917,2]
[329555400,1718433059041,-151.0,0.00021917,2]
[329555401,1718433059072,-500.0,0.00021917,2]
[329555402,1718433059090,-500.0,0.00021917,2]
[329555403,1718433059104,-500.0,0.00021917,2]
[329555404,1718433059136,-506.60310271,0.00021917,2]
[329555405,1718433059167,-218.04129568,0.00021917,2]
[329555406,1718433059274,-281.95870432,0.00021917,2]
[329555407,1718433059292,-500.0,0.00021917,2]
[329555408,1718433059306,-72.25129668,0.00021917,2]
[329555409,1718433059324,-427.74870332,0.00021917,2]
[329555410,1718433059342,-1461.33722083,0.00021917,2]
[329555411,1718433059357,-261.86277917,0.00021917,2]
[329555412,1718433059370,-12.08408056,0.00021917,2]
[329555413,1718433059386,-554.54039684,0.00021917,2]
[329555414,1718433059398,-500.0,0.00021917,2]
[329555415,1718433059409,-500.0,0.00021917,2]
[329555416,1718433059421,-151.0,0.00021917,2]
[329555417,1718433059564,-153.311669,0.00021917,2]
[329555418,1718433059588,-511.95922324,0.00021917,2]
[329555419,1718433059604,-500.0,0.00021917,2]
[329555420,1718433059619,-500.0,0.00021917,2]
[329555421,1718433059635,-155.127049,0.00021917,2]
[329555422,1718433059649,-500.0,0.00021917,2]
[329555423,1718433059684,-500.0,0.00021917,2]
[329555424,1718433059704,-500.0,0.00021917,2]
[329555425,1718433059753,-57.18049182,0.00021917,2]
[329555426,1718433059772,-442.81950818,0.00021917,2]
[329555427,1718433059801,-500.0,0.00021917,2]
[329555428,1718433059821,-151.0,0.00021917,2]
[329555429,1718433059839,-500.0,0.00021917,2]
[329555430,1718433059862,-500.0,0.00021917,2]
[329555431,1718433059874,-14.04475977,0.00021917,2]
[329555432,1718433059890,-439.015,0.00021917,2]
[329555433,1718433059987,-46.94024023,0.00021917,2]
[329555434,1718433059998,-500.0,0.00021917,2]
[329555435,1718433060012,-500.0,0.00021917,2]
[329555436,1718433060034,-500.0,0.00021917,2]
[329555437,1718433060045,-500.0,0.00021917,2]
[329555438,1718433060112,-500.0,0.00021917,2]
[329555439,1718433060148,-151.0,0.00021917,2]
[329555440,1718433060180,-155.14137,0.00021917,2]
[329555441,1718433060192,-778.03,0.00021917,2]
[329555442,1718433060206,-500.0,0.00021917,2]
[329555443,1718433060219,-500.0,0.00021917,2]
[329555444,1718433060237,-500.0,0.00021917,2]
[329555445,1718433060249,-500.0,0.00021917,2]
[329555446,1718433060264,-500.0,0.00021917,2]
[329555447,1718433060297,-568.18,0.00021917,2]
[329555448,1718433060312,-500.0,0.00021917,2]
[329555449,1718433060323,-500.0,0.00021917,2]
[329555450,1718433060336,-500.0,0.00021917,2]
[329555451,1718433060364,-500.0,0.00021917,2]
[329555452,1718433060376,-500.0,0.00021917,2]
[329555453,1718433060396,-645.81,0.00021917,2]
[329555454,1718433060408,-500.0,0.00021917,2]
[329555455,1718433060456,-500.0,0.00021917,2]
[329555456,1718433060468,-1142.17,0.00021917,2]
[329555457,1718433060489,-500.0,0.00021917,2]
[329555458,1718433060499,-885.32,0.00021917,2]
[329555459,1718433060511,-500.0,0.00021917,2]
[329555460,1718433060522,-500.0,0.00021917,2]
[329555461,1718433060537,-500.0,0.00021917,2]
[329555462,1718433060565,-500.0,0.00021917,2]
[329555463,1718433060577,-151.0,0.00021917,2]
[329555464,1718433060624,-153.83669,0.00021917,2]
[329555465,1718433060649,-250.0,0.00021917,2]
[329555466,1718433060666,-500.0,0.00021917,2]
[329555467,1718433060713,-500.0,0.00021917,2]
[329555468,1718433060783,-500.0,0.00021917,2]
[329555469,1718433060796,-507.85295952,0.00021917,2]
[329555470,1718433060808,-151.0,0.00021917,2]
[329555471,1718433060832,-155.932838,0.00021917,2]
[329555472,1718433060845,-514.31617622,0.00021917,2]
[329555473,1718433060893,-500.0,0.00021917,2]
[329555474,1718433060904,-500.0,0.00021917,2]
[329555475,1718433060920,-693.98,0.00021917,2]
[329555476,1718433060964,-500.0,0.00021917,2]
[329555477,1718433061033,-151.0,0.00021917,2]
[329555478,1718433061044,-154.738168,0.00021917,2]
[329555479,1718433061054,-500.0,0.00021917,2]
[329555480,1718433061065,-500.0,0.00021917,2]
[329555481,1718433061078,-500.0,0.00021917,2]
[329555482,1718433061134,-500.0,0.00021917,2]
[329555483,1718433061176,-500.0,0.00021917,2]
[329555484,1718433061219,-500.0,0.00021917,2]
[329555485,1718433061231,-1655.94,0.00021917,2]
[329555486,1718433061242,-621.41,0.00021917,2]
[329555487,1718433061255,-500.0,0.00021917,2]
[329555488,1718433061266,-505.96,0.00021917,2]
[329555489,1718433061281,-1143.17,0.00021917,2]
[329555490,1718433061292,-500.0,0.00021917,2]
[329555491,1718433061304,-156.52,0.00021918,2]
[329555492,1718433061315,-151.482845,0.00021918,2]
[329555493,1718433061331,-193.47,0.00021918,2]
[329555494,1718433061344,-250.0,0.00021918,2]
[329555495,1718433061360,-292.433313,0.00022027,7]
[329555496,1718433061373,-153.097459,0.00022027,7]
[329555497,1718433061389,-154.544028,0.00022027,7]
[329555498,1718433061400,-152.884483,0.00022027,7]
[329555499,1718433061410,-183.782328,0.00022027,7]
[329555500,1718433061422,-151.0,0.00022027,7]
[329555501,1718433061432,-155.05888,0.00022027,7]
[329555502,1718433061443,-167.932153,0.00022027,7]
[329555503,1718433061454,-159.627911,0.00022027,7]
[329555504,1718433061464,-151.0,0.00022027,7]
[329555505,1718433061484,-151.0,0.00022027,7]
[329555506,1718433061515,-151.0,0.00022027,7]
[329555507,1718433061527,-151.0,0.00022027,7]
[329555508,1718433061539,-151.0,0.00022027,7]
[329555509,1718433061551,-161.641754,0.00022027,7]
[329555510,1718433061565,-151.0,0.00022027,7]
[329555511,1718433061578,-151.0,0.00022027,7]
[329555512,1718433061594,-151.0,0.00022027,7]
[329555513,1718433061610,-152.44,0.00022027,2]
[329555514,1718433061636,-411.3,0.00022027,2]
[329555515,1718433061651,-423.1,0.00022027,2]
[329555516,1718433061662,-303.71,0.00022027,2]
[329555517,1718433061678,-150.0,0.00022027,2]
[329555518,1718433061690,-154.87,0.00022027,2]
[329555519,1718433061702,-353.81,0.00022027,2]
[329555520,1718433061713,-163.63,0.00022027,2]
[329555521,1718433061727,-303.8,0.00022027,2]
[329555522,1718433061740,-526.95,0.00022027,2]
[329555523,1718433061752,-150.0,0.00022027,2]
[329555524,1718433061788,-423.1,0.00022027,2]
[329555525,1718433061833,-150.0,0.00022027,2]
[329555526,1718433061847,-330.67,0.00022027,2]
[329555527,1718433061873,-526.95,0.00022027,2]
[329555528,1718433061885,-353.81,0.00022027,2]
[329555529,1718433061898,-423.1,0.00022027,2]
[329555530,1718433061915,-353.81,0.00022027,2]
[329555531,1718433061928,-526.95,0.00022027,2]
[329555532,1718433061988,-150.0,0.00022027,2]
[329555533,1718433062010,-150.0,0.00022027,2]
[329555534,1718433062022,-526.95,0.00022027,2]
[329555535,1718433062036,-150.0,0.00022027,2]
[329555536,1718433062048,-353.81,0.00022027,2]
[329555537,1718433062069,-845.24,0.00022027,2]
[329555538,1718433062089,-779.43,0.00022027,2]
[329555539,1718433062105,-150.0,0.00022027,2]
[329555540,1718433062163,-353.78,0.00022027,2]
[329555541,1718433062177,-500.0,0.00022065,2]
[329555542,1718433062191,-150.0,0.00022081,2]
[329555543,1718433062211,-178.84978198,0.00022091,2]
[329555544,1718433062242,-2246.76474345,0.00022091,2]
[329555545,1718433062262,-170.65886514,0.00022091,2]
[329555546,1718433062278,-179.38098978,0.00022091,2]
[329555547,1718433062304,-200.0,0.00022139,2]
[329555548,1718433062323,-500.0,0.00022139,2]
[329555549,1718433062343,-200.0,0.00022139,2]
[329555550,1718433062376,-151.0,0.00022179,2]